bitfinex/quotes_SOLUSD_20251216
["timestamp","ask_amount","ask_price","bid_price","bid_amount"]
[1765858020042,20.94503765,126.62,126.6,9.38]
[1765858020342,2.87735163,126.61,126.59,8.86]
[1765858020549,2.87735163,126.6,126.59,0.2]
[1765858020733,3.17735163,126.6,126.59,0.2]
[1765858020927,11.07624578,126.6,126.59,0.2]
[1765858021720,11.07624578,126.6,126.59,1e-08]
[1765858021721,22.76354233,126.6,126.59,1e-08]
[1765858021940,13.0470912,126.57,126.56,0.2]
[1765858022151,15.92444283,126.57,126.56,0.2]
[1765858022326,16.22444283,126.57,126.56,0.2]
[1765858022929,24.1252092,126.57,126.56,0.2]
[1765858023653,20.94785757,126.57,126.56,0.2]
[1765858024028,7.89827027,126.61,126.56,20.31868658]
[1765858024247,6.96658338,126.65,126.59,2.87735163]
[1765858024248,10.77375087,126.64,126.59,2.87735163]
[1765858024440,13.0470912,126.63,126.59,2.87735163]
[1765858024755,10.77375087,126.64,126.6,12.21735163]
[1765858024756,7.89639924,126.64,126.6,12.21735163]
[1765858024928,7.89577575,126.65,126.62,2.87735163]
[1765858025552,7.89577575,126.65,126.63,0.68]
[1765858025922,10.77312738,126.65,126.61,0.68]
[1765858026129,2.87735163,126.64,126.61,0.68]
[1765858027332,8.01466132,126.63,126.6,8.66]
[1765858027537,20.76175252,126.64,126.61,0.68]
[1765858027866,13.0470912,126.64,126.61,0.68]
[1765858028656,7.89702282,126.63,126.61,0.68]
[1765858028865,13.0470912,126.62,126.59,0.68]
[1765858029044,20.76175252,126.62,126.59,0.68]
[1765858030742,7.89827027,126.61,126.59,0.68]
[1765858033828,7.89827027,126.61,126.57,8.66]
[1765858034036,13.0470912,126.6,126.58,0.68]
[1765858035351,7.89951812,126.59,126.58,0.68]
[1765858039235,7.89577575,126.65,126.58,21.11977539]
[1765858039557,13.0470912,126.64,126.6,12.53970532]
[1765858039748,13.0470912,126.64,126.61,8.66]
[1765858039955,13.0470912,126.64,126.61,9.34]
[1765858040158,13.0470912,126.63,126.62,0.68]
[1765858040361,20.94411402,126.63,126.62,0.68]
[1765858041064,7.89702282,126.63,126.62,0.68]
[1765858041289,7.89622015,126.65,126.62,21.1172733]
[1765858041483,7.89622015,126.65,126.63,12.53970532]
[1765858041772,7.89622015,126.65,126.64,8.66]
[1765858042080,7.89622015,126.65,126.64,9.34]
[1765858042454,7.89515237,126.66,126.64,9.34]
[1765858044179,7.89515237,126.66,126.65,0.68]
[1765858045769,7.89515237,126.66,126.64,9.34]
[1765858048071,0.3,126.65,126.64,8.66]
[1765858048248,0.3,126.65,126.62,8.66]
[1765858048450,40.46127884,126.66,126.62,9.34]
[1765858048961,27.63303331,126.66,126.63,0.68]
[1765858049771,27.93303331,126.66,126.62,13.15714433]
[1765858049955,27.93303331,126.66,126.63,0.68]
[1765858050157,32.43017764,126.66,126.63,0.68]
[1765858050980,32.13017764,126.66,126.63,0.68]
[1765858051354,27.63303331,126.66,126.63,0.68]
[1765858052474,7.89515237,126.66,126.63,5.17714433]
[1765858052883,7.89515237,126.66,126.64,0.67]
[1765858054682,7.89515237,126.66,126.65,8.66]
[1765858057978,7.89515237,126.66,126.65,9.33]
[1765858059870,7.89515237,126.66,126.65,8.66]
[1765858066793,27.93303331,126.66,126.61,61.9]
[1765858066995,4.49714433,126.65,126.62,0.67]
[1765858067170,7.89515237,126.66,126.63,4.49714433]
[1765858067491,7.89515237,126.66,126.64,8.66]
[1765858067693,7.89515237,126.66,126.64,9.33]
[1765858067894,7.89515237,126.66,126.65,0.67]
[1765858073092,27.62945897,126.68,126.65,0.67]
[1765858073499,27.92945897,126.68,126.65,0.67]
[1765858074696,27.62945897,126.68,126.65,0.67]
[1765858075572,7.8939059,126.68,126.66,4.49714433]
[1765858076074,7.89355663,126.69,126.67,13.82714433]
[1765858076273,7.89355663,126.69,126.67,9.33]
[1765858078501,7.89272547,126.7,126.68,0.67]
[1765858079171,4.49714433,126.72,126.68,0.67]
[1765858079501,7.8904114,126.74,126.71,4.49714433]
[1765858079712,7.8904114,126.74,126.72,8.66]
[1765858080297,7.8904114,126.74,126.65,19.73844294]
[1765858080298,13.0470912,126.71,126.65,19.73844294]
[1765858080491,4.49714433,126.7,126.67,0.67]
[1765858082504,12.39017742,126.7,126.67,0.67]
[1765858084991,32.12182698,126.7,126.67,0.67]
[1765858085198,4.49714433,126.69,126.66,9.35]
[1765858085505,0.1,126.76,126.71,13.0470912]
[1765858085805,0.1,126.76,126.73,4.49714433]
[1765858085996,7.98895605,126.76,126.72,13.84714433]
[1765858086196,7.98895605,126.76,126.73,0.69]
[1765858087395,7.98895605,126.76,126.73,5.18714433]
[1765858087799,0.1,126.76,126.74,5.18714433]
[1765858088111,0.1,126.76,126.75,13.15714433]
[1765858088294,0.1,126.76,126.75,9.35]
[1765858088607,0.1,126.76,126.73,27.61755715]
[1765858088608,4.89714433,126.76,126.73,8.66]
[1765858088796,4.59714433,126.76,126.73,9.35]
[1765858090006,12.48643585,126.76,126.73,9.35]
[1765858090595,4.79714433,126.75,126.73,8.66]
[1765858090898,4.49714433,126.75,126.73,8.66]
[1765858091099,12.48643585,126.76,126.73,9.35]
[1765858091604,4.49714433,126.75,126.73,9.35]
[1765858095616,7.98929152,126.76,126.73,8.66]
[1765858095911,7.98929152,126.76,126.74,0.69]
[1765858098310,10.86286274,126.76,126.74,0.69]
[1765858098493,10.86286274,126.76,126.73,9.35]
[1765858099715,10.86286274,126.76,126.74,0.69]
[1765858099917,0.1,126.76,126.74,8.57999875]
[1765858100421,0.1,126.76,126.75,0.69]
[1765858101526,0.1,126.76,126.75,8.57954635]
[1765858103294,0.1,126.76,126.75,0.69]
[1765858106499,11.16249517,126.76,126.73,70.56]
[1765858106700,11.16249517,126.76,126.73,71.25]
[1765858106900,2.87357122,126.75,126.73,70.56]
[1765858107198,8.28892395,126.76,126.73,70.56]
[1765858107199,10.86249517,126.76,126.74,0.69]
[1765858107502,7.98892395,126.76,126.74,0.69]
[1765858109022,0.1,126.76,126.74,0.69]
[1765858112730,0.1,126.76,126.74,8.58016534]
[1765858112929,0.1,126.76,126.75,0.7]
[1765858115229,0.1,126.76,126.75,11.46292713]
[1765858115430,0.1,126.76,126.75,8.58954635]
[1765858116920,0.1,126.76,126.75,11.46292713]
[1765858117107,0.1,126.76,126.75,73.36292713]
[1765858117623,0.1,126.76,126.75,20.27287205]
[1765858118413,0.1,126.76,126.75,28.93287205]
[1765858118734,0.1,126.76,126.75,17.24954635]
[1765858122109,0.1,126.76,126.75,8.66]
[1765858122430,2.97338078,126.76,126.75,8.66]
[1765858125024,10.86230473,126.76,126.75,8.66]
[1765858125732,30.8846146,126.76,126.71,0.7]
[1765858125927,2.87338078,126.74,126.72,8.66]
[1765858126312,3.17338078,126.74,126.72,8.66]
[1765858127010,11.06355933,126.74,126.72,8.66]
[1765858127414,7.89017855,126.74,126.72,8.66]
[1765858127646,3.17338078,126.73,126.72,8.66]
[1765858127838,2.87338078,126.73,126.72,8.66]
[1765858128546,20.93692654,126.75,126.72,9.36]
[1765858128838,13.0470912,126.75,126.73,0.7]
[1765858129015,20.93674698,126.75,126.73,0.7]
[1765858129217,7.88965578,126.75,126.73,0.7]
[1765858129625,10.76303656,126.75,126.73,0.7]
[1765858129827,7.88965578,126.75,126.73,0.7]
[1765858130027,10.76303656,126.75,126.73,0.7]
[1765858133140,0.1,126.76,126.74,2.87338078]
[1765858133355,0.1,126.76,126.75,28.93287205]
[1765858142573,0.1,126.76,126.75,25.35949127]
[1765858142739,0.1,126.76,126.75,17.23954635]
[1765858145544,0.1,126.76,126.75,28.92287205]
[1765858152285,0.1,126.76,126.75,8.66]
[1765858152587,0.4,126.76,126.75,8.66]
[1765858152888,0.1,126.76,126.75,8.66]
[1765858153889,0.4,126.76,126.75,8.66]
[1765858154293,3.27338078,126.76,126.75,8.66]
[1765858154591,11.16230473,126.76,126.75,8.66]
[1765858155587,8.28892395,126.76,126.75,8.66]
[1765858156284,11.16230473,126.76,126.75,8.66]
[1765858159403,12.77913762,126.76,126.75,8.66]
[1765858161768,0.1,126.76,126.75,8.66]
[1765858162398,0.4,126.76,126.75,8.66]
[1765858162902,4.89021367,126.76,126.75,8.66]
[1765858163400,12.77913762,126.76,126.75,8.66]
[1765858164814,32.50144749,126.76,126.7,7.89224661]
[1765858164990,12.38111333,126.73,126.71,8.66]
[1765858165211,4.49021367,126.72,126.71,8.66]
[1765858165377,4.79021367,126.72,126.71,8.66]
[1765858168090,12.68162781,126.72,126.71,8.66]
[1765858170707,19.72697861,126.73,126.71,9.35]
[1765858170708,7.89108259,126.73,126.71,9.35]
[1765858170907,12.38129626,126.73,126.71,9.35]
[1765858171408,7.89108259,126.73,126.71,9.35]
[1765858172208,12.68062967,126.74,126.71,9.35]
[1765858172784,7.890416,126.74,126.71,8.66]
[1765858172992,12.68003239,126.75,126.71,16.55179545]
[1765858173297,12.68003239,126.75,126.71,9.32]
[1765858173298,4.49021367,126.73,126.71,9.32]
[1765858174413,12.38104235,126.73,126.71,9.32]
[1765858175914,4.79021367,126.72,126.68,62.56]
[1765858176115,4.49386057,126.71,126.69,8.66]
[1765858176318,12.38652039,126.7,126.67,8.66]
[1765858176541,12.38652039,126.7,126.67,9.32]
[1765858176814,12.68652039,126.7,126.67,9.32]
[1765858177401,32.41816995,126.7,126.67,8.66]
[1765858177725,32.41816995,126.7,126.67,9.32]
[1765858180709,27.92430938,126.7,126.67,9.32]
[1765858181021,17.84095177,126.7,126.67,9.32]
[1765858182921,7.89328281,126.69,126.68,0.66]
[1765858183318,7.89328281,126.69,126.67,9.32]
[1765858185133,7.89328281,126.69,126.67,8.66]
[1765858185314,7.89328281,126.69,126.67,9.32]
[1765858188103,12.68714338,126.69,126.67,8.66]
[1765858188303,4.49386057,126.68,126.67,8.66]
[1765858188503,4.79386057,126.68,126.67,8.66]
[1765858188727,4.79386057,126.68,126.61,0.66]
[1765858188925,4.49386057,126.64,126.62,8.66]
[1765858189121,4.49386057,126.63,126.62,8.66]
[1765858189320,4.79386057,126.63,126.62,8.66]
[1765858189504,17.54095177,126.66,126.62,8.66]
[1765858189709,4.49386057,126.63,126.62,8.66]
[1765858190635,7.89702282,126.63,126.62,8.66]
[1765858190818,12.39088339,126.63,126.62,8.66]
[1765858192028,7.89702282,126.63,126.62,9.32]
[1765858192739,7.89663898,126.64,126.62,9.32]
[1765858193030,7.89663898,126.64,126.63,0.66]
[1765858193431,7.89663898,126.64,126.62,9.32]
[1765858194238,12.39049955,126.64,126.62,9.32]
[1765858197943,7.89663898,126.64,126.62,9.32]
[1765858198717,7.89663898,126.64,126.62,8.66]
[1765858198923,4.49386057,126.63,126.62,8.66]
[1765858199640,12.39088339,126.63,126.62,8.66]
[1765858200444,7.89702282,126.63,126.62,8.66]
[1765858200619,7.89702282,126.63,126.62,9.32]
[1765858201021,7.89662336,126.64,126.62,9.32]
[1765858202245,12.39048393,126.64,126.62,9.32]
[1765858204146,7.89662336,126.64,126.62,9.32]
[1765858204335,12.39048393,126.64,126.62,9.32]
[1765858204536,7.89577575,126.65,126.63,0.66]
[1765858204733,12.38963632,126.65,126.63,0.66]
[1765858205043,10.11472382,126.72,126.63,0.66]
[1765858205044,32.78285833,126.68,126.63,0.66]
[1765858205251,4.49386057,126.66,126.63,0.66]
[1765858205460,7.89577575,126.65,126.63,0.66]
[1765858206862,12.38963632,126.65,126.62,8.66]
[1765858207069,12.68963632,126.65,126.62,9.32]
[1765858207664,4.49386057,126.64,126.62,9.32]
[1765858208040,12.38963632,126.65,126.62,9.32]
[1765858208242,7.89577575,126.65,126.63,0.66]
[1765858208449,12.38963632,126.65,126.63,0.66]
[1765858208745,12.38963632,126.65,126.62,8.66]
[1765858208935,12.68963632,126.65,126.62,9.32]
[1765858209137,12.38963632,126.65,126.62,9.32]
[1765858209554,7.89577575,126.65,126.63,0.66]
[1765858211366,7.89545376,126.66,126.63,0.66]
[1765858211545,4.49386057,126.67,126.63,13.05084287]
[1765858211546,7.89482824,126.67,126.63,13.05084287]
[1765858211752,25.43509817,126.68,126.63,13.05084287]
[1765858211954,25.43509817,126.68,126.64,0.66]
[1765858212152,25.43509817,126.68,126.65,8.66]
[1765858212337,17.54095177,126.68,126.65,8.66]
[1765858212541,4.49386057,126.7,126.66,0.66]
[1765858213641,4.79386057,126.7,126.66,0.66]
[1765858214050,12.68704189,126.7,126.66,0.66]
[1765858215072,12.38704189,126.7,126.66,8.55509727]
[1765858215447,12.38704189,126.7,126.67,0.66]
[1765858215651,12.38704189,126.7,126.68,8.66]
[1765858219448,4.49386057,126.69,126.68,8.66]
[1765858221378,2.87693909,126.69,126.68,8.66]
[1765858222160,10.7702219,126.69,126.68,8.66]
[1765858225483,7.89328281,126.69,126.68,8.66]
[1765858225794,7.89328281,126.69,126.68,9.32]
[1765858227090,7.89328281,126.69,126.68,8.66]
[1765858227296,10.7702219,126.69,126.68,8.66]
[1765858228495,7.89328281,126.69,126.68,9.32]
[1765858229599,11.0702219,126.69,126.68,8.66]
[1765858229897,30.80342894,126.69,126.66,8.66]
[1765858230191,2.87693909,126.67,126.66,8.66]
[1765858230579,3.17693909,126.67,126.66,8.66]
[1765858231769,11.07146818,126.67,126.66,8.66]
[1765858232979,2.87693909,126.67,126.66,8.66]
[1765858234996,10.77146818,126.67,126.66,8.66]
[1765858236288,32.78029824,126.69,126.66,9.34]
[1765858236289,7.89352786,126.69,126.66,9.34]
[1765858236502,7.89352786,126.69,126.67,0.68]
[1765858237812,19.72791077,126.73,126.67,3.55693909]
[1765858238118,22.60484986,126.73,126.67,3.55693909]
[1765858238292,35.95194106,126.73,126.68,0.68]
[1765858238494,35.95194106,126.73,126.69,8.66]
[1765858238691,2.87693909,126.72,126.69,9.34]
[1765858239014,10.7688171,126.72,126.69,9.34]
[1765858241709,10.7688171,126.72,126.7,0.68]
[1765858241710,7.89187801,126.72,126.7,0.68]
[1765858244620,7.89187801,126.72,126.69,9.34]
[1765858244824,8.19187801,126.72,126.69,9.34]
[1765858245716,11.06712592,126.72,126.69,9.34]
[1765858246824,7.89187801,126.72,126.7,0.68]
[1765858248121,13.0470912,126.73,126.7,8.57265003]
[1765858248504,13.0470912,126.73,126.71,0.68]
[1765858248703,13.0470912,126.73,126.72,8.66]
[1765858249402,24.11313055,126.73,126.72,8.66]
[1765858249921,23.81313055,126.73,126.72,8.66]
[1765858254615,24.11313055,126.73,126.71,8.66]
[1765858254818,3.17524791,126.72,126.71,8.66]
[1765858255919,2.87524791,126.72,126.71,8.66]
[1765858256409,7.89141414,126.72,126.71,8.66]
[1765858256828,7.89141414,126.72,126.71,9.34]
[1765858257303,23.81340528,126.73,126.71,9.34]
[1765858257529,23.81340528,126.73,126.72,0.68]
[1765858257702,23.81340528,126.73,126.71,8.66]
[1765858257904,23.81340528,126.73,126.71,9.34]
[1765858258734,0.1,126.76,126.72,3.55524791]
[1765858258913,0.1,126.76,126.73,2.87524791]
[1765858259123,0.1,126.76,126.74,8.66]
[1765858259442,0.1,126.76,126.74,12.21524791]
[1765858259612,0.1,126.76,126.75,0.68]
[1765858261157,0.1,126.76,126.75,8.56954635]
[1765858261442,0.1,126.76,126.75,11.44479426]
[1765858262326,0.1,126.76,126.75,8.56954635]
[1765858262516,2.97524791,126.76,126.74,8.66]
[1765858262716,13.0470912,126.73,126.69,0.72]
[1765858262936,7.89174483,126.72,126.7,8.66]
[1765858263128,2.87524791,126.71,126.7,8.66]
[1765858263328,2.87524791,126.71,126.7,9.38]
[1765858263548,2.87524791,126.71,126.7,8.66]
[1765858264238,2.87524791,126.71,126.7,9.38]
[1765858268319,10.76728484,126.71,126.7,8.66]
[1765858269257,8.90994492,126.76,126.7,9.38]
[1765858269258,2.87524791,126.74,126.7,9.38]
[1765858269425,2.87524791,126.74,126.71,0.72]
[1765858270429,10.76550162,126.74,126.71,0.72]
[1765858271030,2.87524791,126.73,126.71,0.72]
[1765858272932,10.76630486,126.73,126.71,0.72]
[1765858273240,3.17524791,126.72,126.7,8.66]
[1765858273444,2.87524791,126.71,126.7,8.66]
[1765858274143,10.76728484,126.71,126.7,8.66]
[1765858276041,11.06728484,126.71,126.7,8.66]
[1765858276550,2.87524791,126.74,126.7,9.38]
[1765858276854,2.87524791,126.74,126.71,0.72]
[1765858277357,10.76541675,126.74,126.71,0.72]
[1765858278131,2.87524791,126.73,126.71,0.72]
[1765858278653,10.76541675,126.74,126.71,0.72]
[1765858283554,12.38191525,126.74,126.71,0.72]
[1765858284659,7.89016884,126.74,126.71,0.72]
[1765858284856,12.38191525,126.74,126.71,0.72]
[1765858286658,4.49174641,126.72,126.7,8.66]
[1765858286961,12.38378334,126.71,126.7,8.66]
[1765858287763,12.68378334,126.71,126.7,8.66]
[1765858288662,12.38378334,126.71,126.7,8.66]
[1765858290165,12.68378334,126.71,126.7,8.66]
[1765858290667,12.38378334,126.71,126.7,8.66]
[1765858292051,12.68378334,126.71,126.7,8.66]
[1765858292252,25.73087454,126.71,126.7,8.66]
[1765858297579,45.46096687,126.71,126.65,61.9]
[1765858297784,4.49174641,126.68,126.66,9.35]
[1765858298086,4.49174641,126.67,126.66,8.66]
[1765858298866,12.3862755,126.67,126.66,8.66]
[1765858300993,12.3862755,126.67,126.66,9.35]
[1765858301890,7.89452909,126.67,126.66,9.35]
[1765858304487,4.49174641,126.69,126.66,9.35]
[1765858304799,4.49174641,126.69,126.67,0.69]
[1765858304999,7.89265982,126.7,126.66,8.66]
[1765858305000,12.38565231,126.68,126.66,8.66]
[1765858305199,12.38565231,126.68,126.66,9.35]
[1765858305797,7.8939059,126.68,126.66,9.35]
[1765858306002,12.38565231,126.68,126.66,9.35]
[1765858306592,13.0470912,126.71,126.67,0.69]
[1765858306791,12.38440623,126.7,126.67,0.69]
[1765858307171,4.49174641,126.69,126.67,0.69]
[1765858307778,4.4950826,126.69,126.67,0.69]
[1765858311719,12.3884871,126.69,126.67,0.69]
[1765858312978,12.38774242,126.7,126.67,0.69]
[1765858314611,32.11939198,126.7,126.67,0.69]
[1765858314904,4.4950826,126.69,126.67,0.69]
[1765858315111,12.38893357,126.69,126.67,0.69]
[1765858315888,27.92705801,126.69,126.66,9.35]
[1765858316094,4.4950826,126.68,126.66,9.35]
[1765858317104,27.92705801,126.69,126.66,9.35]
[1765858317407,12.38931118,126.68,126.66,9.35]
[1765858318814,4.4950826,126.67,126.66,9.35]
[1765858320428,4.7950826,126.67,126.63,0.69]
[1765858320716,4.4950826,126.65,126.63,0.69]
[1765858321078,8.19513349,126.67,126.63,8.58700437]
[1765858321280,4.4950826,126.69,126.64,4.4950826]
[1765858321506,4.4950826,126.69,126.65,8.66]
[1765858321725,4.4950826,126.69,126.65,9.35]
[1765858321928,20.93975102,126.7,126.66,0.69]
[1765858322139,4.4950826,126.69,126.66,0.69]
[1765858323321,12.38774242,126.7,126.66,8.58483154]
[1765858323929,25.43448262,126.71,126.66,13.07991414]
[1765858324135,12.3867419,126.72,126.67,5.1650826]
[1765858324436,8.90994492,126.76,126.7,4.4950826]
[1765858324437,19.82939649,126.76,126.7,4.4950826]
[1765858324734,4.4950826,126.75,126.71,8.66]
[1765858324932,4.4950826,126.75,126.71,9.33]
[1765858325237,12.4840659,126.76,126.72,0.67]
[1765858328745,12.4840659,126.76,126.72,8.561375]
[1765858328946,0.1,126.76,126.73,4.4950826]
[1765858329122,0.1,126.76,126.74,8.66]
[1765858329321,0.1,126.76,126.74,9.33]
[1765858329647,0.1,126.76,126.75,0.67]
[1765858330327,0.1,126.76,126.74,9.33]
[1765858330643,4.5950826,126.76,126.74,9.33]
[1765858331233,0.1,126.76,126.74,9.33]
[1765858331434,0.1,126.76,126.75,0.67]
[1765858336763,0.1,126.76,126.75,8.55954635]
[1765858336961,0.1,126.76,126.75,0.67]
[1765858337165,0.1,126.76,126.74,8.66]
[1765858337365,0.1,126.76,126.74,9.33]
[1765858341567,0.1,126.76,126.75,0.67]
[1765858343767,0.1,126.76,126.75,8.55954635]
[1765858344843,4.8950826,126.76,126.72,0.67]
[1765858345061,0.4,126.76,126.73,9.33]
[1765858345369,3.27376605,126.76,126.73,9.33]
[1765858345575,2.97376605,126.76,126.73,9.33]
[1765858345941,3.27376605,126.76,126.73,9.33]
[1765858346740,11.16308794,126.76,126.73,9.33]
[1765858346964,8.28932189,126.76,126.73,9.33]
[1765858347172,11.16308794,126.76,126.73,9.33]
[1765858351861,10.86308794,126.76,126.73,8.66]
[1765858352070,8.28932189,126.76,126.73,9.32]
[1765858352258,11.16308794,126.76,126.73,9.32]
[1765858354068,2.87376605,126.74,126.73,8.66]
[1765858354275,3.17376605,126.75,126.73,8.66]
[1765858354774,30.88539781,126.76,126.73,8.66]
[1765858355274,0.3,126.75,126.73,8.66]
[1765858356165,8.18957591,126.75,126.73,8.66]
[1765858357181,3.17376605,126.74,126.71,0.7]
[1765858357347,3.17376605,126.74,126.72,8.66]
[1765858357554,3.17376605,126.73,126.72,8.66]
[1765858357774,16.22085725,126.73,126.72,8.66]
[1765858357952,16.22085725,126.73,126.68,7.89384856]
[1765858357953,13.0470912,126.72,126.67,8.5942477]
[1765858358156,10.7667469,126.7,126.68,8.66]
[1765858358554,2.87376605,126.69,126.68,8.66]
[1765858358847,3.17376605,126.69,126.68,8.66]
[1765858359076,2.87376605,126.69,126.68,8.66]
[1765858359774,10.76704886,126.69,126.68,8.66]
[1765858361964,43.8473471,126.69,126.63,0.7]
[1765858362160,2.87376605,126.65,126.63,9.36]
[1765858362560,2.87376605,126.65,126.63,8.66]
[1765858363285,2.87376605,126.64,126.63,8.66]
[1765858363649,2.87376605,126.65,126.63,8.66]
[1765858363855,2.87376605,126.65,126.63,9.36]
[1765858366086,8.19538071,126.66,126.63,9.36]
[1765858366381,2.87376605,126.65,126.63,9.36]
[1765858366986,10.76914676,126.66,126.63,9.36]
[1765858367774,10.76914676,126.66,126.64,0.7]
[1765858368879,2.87376605,126.65,126.63,9.36]
[1765858369678,2.87376605,126.65,126.63,8.66]
[1765858369879,2.87376605,126.65,126.63,9.36]
[1765858370359,11.06914676,126.66,126.63,9.36]
[1765858370583,10.76914676,126.66,126.63,9.36]
[1765858370758,33.08084033,126.69,126.64,0.7]
[1765858370960,2.87376605,126.67,126.64,0.7]
[1765858371283,10.7683416,126.67,126.64,0.7]
[1765858373903,10.77261881,126.67,126.64,0.7]
[1765858378410,2.87804326,126.65,126.63,8.66]
[1765858378581,2.87804326,126.64,126.63,8.66]
[1765858380303,11.0744425,126.64,126.63,8.66]
[1765858380906,10.77403046,126.65,126.63,8.66]
[1765858381396,2.87804326,126.64,126.63,8.66]
[1765858381595,3.17804326,126.64,126.63,8.66]
[1765858381799,11.0744425,126.64,126.63,8.66]
[1765858382004,10.7744425,126.64,126.63,8.66]
[1765858382790,7.89639924,126.64,126.63,8.66]
[1765858383028,10.7744425,126.64,126.63,8.66]
[1765858393919,7.89577575,126.65,126.63,8.66]
[1765858394120,7.89527045,126.66,126.64,0.69]
[1765858394434,10.77285674,126.67,126.64,0.69]
[1765858394725,7.89481348,126.67,126.64,0.69]
[1765858395317,10.77285674,126.67,126.64,0.69]
[1765858399017,2.87804326,126.66,126.63,9.35]
[1765858399228,3.17804326,126.66,126.63,9.35]
[1765858400309,2.87804326,126.65,126.63,9.35]
[1765858401231,2.87804326,126.65,126.64,0.69]
[1765858402736,3.17804326,126.65,126.63,8.66]
[1765858402938,16.22513446,126.64,126.63,8.66]
[1765858403137,24.1215337,126.64,126.63,8.66]
[1765858405434,25.74376177,126.64,126.63,8.66]
[1765858406635,45.48475987,126.64,126.61,0.69]
[1765858407264,40.68448854,126.64,126.61,0.69]
[1765858407550,4.50027133,126.62,126.61,0.69]
[1765858407716,4.50027133,126.62,126.6,8.66]
[1765858407717,7.89827027,126.61,126.6,8.66]
[1765858407918,12.6985416,126.61,126.58,0.69]
[1765858408121,4.50027133,126.59,126.58,9.35]
[1765858408924,12.39978945,126.59,126.58,9.35]
[1765858411952,7.89951812,126.59,126.58,8.66]
[1765858412138,12.39978945,126.59,126.58,8.66]
[1765858412835,7.89951812,126.59,126.58,8.66]
[1765858413157,32.44858477,126.59,126.56,0.2]
[1765858413358,4.50027133,126.57,126.56,0.2]
[1765858413835,4.80027133,126.57,126.56,0.2]
[1765858414043,12.7010377,126.57,126.56,0.2]
[1765858416133,12.7010377,126.57,126.55,0.2]
[1765858416134,21.85703612,126.56,126.55,0.2]
[1765858416335,13.0470912,126.54,126.53,0.2]
[1765858416532,22.04763386,126.54,126.53,0.2]
[1765858416853,22.34763386,126.54,126.53,0.2]
[1765858417262,30.25027334,126.54,126.53,0.2]
[1765858417641,25.75000201,126.54,126.53,0.2]
[1765858419261,25.75000201,126.54,126.5,0.92]
[1765858419262,58.81681696,126.54,126.5,0.92]
[1765858419438,4.50027133,126.51,126.5,0.92]
[1765858419966,4.50027133,126.51,126.5,0.2]
[1765858421235,4.50027133,126.54,126.5,0.91]
[1765858421439,4.50027133,126.55,126.5,5.41027133]
[1765858421662,4.50027133,126.55,126.51,0.71]
[1765858422564,7.90263948,126.54,126.51,0.71]
[1765858423760,17.54736253,126.56,126.52,8.66]
[1765858424062,13.0470912,126.56,126.53,0.71]
[1765858424238,7.90139064,126.56,126.53,0.71]
[1765858424644,12.40166197,126.56,126.53,0.71]
[1765858425664,7.90139064,126.56,126.53,0.71]
[1765858427457,12.40166197,126.56,126.53,0.71]
[1765858427867,7.90139064,126.56,126.53,0.71]
[1765858431373,4.50027133,126.55,126.53,0.71]
[1765858433272,4.80027133,126.54,126.52,8.66]
[1765858433465,4.50027133,126.53,126.52,8.66]
[1765858434272,12.40353537,126.53,126.52,8.66]
[1765858437477,20.05503753,126.55,126.52,8.66]
[1765858437478,12.40291081,126.54,126.52,8.66]
[1765858437677,12.40291081,126.54,126.52,9.37]
[1765858439478,12.40872973,126.54,126.52,9.37]
[1765858441481,20.05503753,126.55,126.53,0.71]